bitfinex/quotes_SOLUSD_20250817
["timestamp","ask_amount","ask_price","bid_price","bid_amount"]
[1755465740432,69.25448018,191.3,191.29,0.03]
[1755465740627,71.34954418,191.3,191.29,0.03]
[1755465742918,67.88007649,191.3,191.29,0.03]
[1755465743235,69.26231663,191.3,191.29,0.03]
[1755465743443,71.35737963,191.3,191.29,0.03]
[1755465743740,71.35018173,191.3,191.29,0.03]
[1755465744318,71.35079953,191.3,191.29,0.03]
[1755465744623,41.10621557,191.28,191.27,0.03]
[1755465744826,89.308345,191.28,191.27,0.03]
[1755465745038,89.968345,191.28,191.27,0.03]
[1755465746657,95.1962831,191.28,191.27,0.03]
[1755465746830,94.5362831,191.28,191.27,0.03]
[1755465748069,94.5362831,191.28,191.27,0.71]
[1755465749743,12.56886275,191.28,191.27,0.71]
[1755465750052,12.56886275,191.28,191.27,4.71120478]
[1755465750053,7.34381021,191.28,191.27,4.71120478]
[1755465750260,3.86650607,191.28,191.27,4.71120478]
[1755465750476,0.06,191.31,191.27,13.94062098]
[1755465750627,0.06,191.31,191.27,0.03]
[1755465751067,0.06,191.31,191.3,4.00120478]
[1755465752141,0.06,191.31,191.27,0.03]
[1755465752351,0.06,191.31,191.29,4.00120478]
[1755465752566,0.06,191.31,191.27,0.03]
[1755465752759,0.66,191.3,191.27,0.03]
[1755465753351,26.0,191.28,191.27,0.03]
[1755465756172,0.06,191.31,191.27,0.03]
[1755465756378,0.06,191.31,191.29,4.00120478]
[1755465756986,0.06,191.31,191.3,4.00120478]
[1755465761484,0.06,191.31,191.27,0.03]
[1755465761679,0.06,191.31,191.28,4.00120478]
[1755465762383,0.06,191.31,191.3,4.00120478]
[1755465762567,7.41961854,191.31,191.3,4.00120478]
[1755465762995,3.93340096,191.31,191.3,4.00120478]
[1755465764877,0.06,191.31,191.3,9.22859631]
[1755465766662,0.06,191.33,191.3,9.75133546]
[1755465766863,0.06,191.35,191.32,4.00120478]
[1755465767169,0.06,191.35,191.34,4.00120478]
[1755465768004,0.06,191.35,191.34,9.22750351]
[1755465781985,0.06,191.35,191.34,46.04750351]
[1755465782603,0.06,191.35,191.34,9.22750351]
[1755465782796,0.06,191.35,191.34,46.04750351]
[1755465783685,0.06,191.37,191.36,26.0]
[1755465783880,0.06,191.39,191.38,4.00120478]
[1755465784186,0.06,191.39,191.38,40.82120478]
[1755465784891,0.06,191.39,191.38,46.04641117]
[1755465785728,0.06,191.39,191.38,50.04761595]
[1755465786027,7.71045195,191.43,191.38,5.22520639]
[1755465786231,3.85547006,191.42,191.4,4.00120478]
[1755465786435,7.71045195,191.43,191.4,4.00120478]
[1755465786598,4.5360701,191.42,191.4,4.00120478]
[1755465786797,0.68,191.42,191.4,4.00120478]
[1755465788400,3.85686363,191.41,191.4,4.00120478]
[1755465788603,4.53686363,191.41,191.4,4.00120478]
[1755465788812,0.68,191.41,191.4,4.00120478]
[1755465789000,4.53686143,191.41,191.4,4.00120478]
[1755465790026,4.53729554,191.41,191.39,4.00120478]
[1755465790195,7.71045195,191.43,191.4,4.00120478]
[1755465790397,4.53817984,191.42,191.37,4.00120478]
[1755465790615,4.53817984,191.41,191.39,36.86]
[1755465790793,4.53817984,191.4,191.39,36.86]
[1755465791810,4.53817984,191.4,191.38,4.00120478]
[1755465792002,4.53853963,191.39,191.37,40.86120478]
[1755465792204,3.85853963,191.38,191.37,40.86120478]
[1755465792411,3.85853963,191.38,191.37,42.08547743]
[1755465792715,4.53853963,191.38,191.37,40.86120478]
[1755465793120,3.85853963,191.38,191.37,46.08668421]
[1755465794145,4.53853963,191.38,191.37,36.86]
[1755465795129,4.53853963,191.38,191.37,40.86120478]
[1755465796518,4.53853963,191.38,191.37,36.86]
[1755465797717,8.01754091,191.38,191.37,36.86]
[1755465797907,4.15900128,191.38,191.37,36.86]
[1755465798108,8.02451199,191.38,191.37,36.86]
[1755465799210,8.02451199,191.38,191.37,40.86120478]
[1755465800514,7.34451199,191.38,191.37,40.86120478]
[1755465801509,8.02451199,191.38,191.37,36.86]
[1755465801727,8.02451199,191.38,191.37,40.86120478]
[1755465802436,8.02451199,191.38,191.37,36.86]
[1755465806621,8.02451199,191.38,191.33,0.03]
[1755465806822,12.02571677,191.37,191.33,0.03]
[1755465807046,7.34451199,191.36,191.33,0.03]
[1755465807241,3.47900128,191.35,191.33,0.03]
[1755465807414,7.3602443,191.34,191.33,0.03]
[1755465807736,8.0402443,191.34,191.33,0.03]
[1755465816620,8.04067433,191.34,191.33,0.03]
[1755465817445,8.04023431,191.34,191.33,0.03]
[1755465819244,7.36023431,191.34,191.33,4.03120478]
[1755465820062,0.68,191.36,191.33,4.03120478]
[1755465820263,3.49245214,191.35,191.34,40.72120478]
[1755465820571,4.17245214,191.35,191.34,40.72120478]
[1755465821130,3.49245214,191.35,191.34,40.72120478]
[1755465823461,3.49207562,191.35,191.34,40.72120478]
[1755465824055,3.49207562,191.35,191.34,45.94750351]
[1755465824261,0.68,191.37,191.34,45.94750351]
[1755465824471,7.3716248,191.36,191.35,4.00120478]
[1755465824952,8.0516248,191.36,191.34,40.72120478]
[1755465825134,0.68,191.36,191.34,40.72120478]
[1755465825348,3.49225136,191.35,191.34,40.72120478]
[1755465825538,4.17225136,191.35,191.34,40.72120478]
[1755465826856,0.68,191.35,191.34,40.72120478]
[1755465827547,0.06,191.39,191.34,45.94750351]
[1755465827738,0.68,191.37,191.34,45.94750351]
[1755465827938,7.37211533,191.36,191.34,45.94750351]
[1755465828142,0.68,191.36,191.34,45.94750351]
[1755465829348,3.49216426,191.35,191.34,45.94750351]
[1755465829754,12.0530852,191.35,191.33,0.03]
[1755465829939,12.0530852,191.34,191.33,0.03]
[1755465830763,8.05188042,191.34,191.33,36.73]
[1755465834952,4.17216426,191.34,191.33,36.73]
[1755465835163,8.05452671,191.34,191.33,36.73]
[1755465835589,8.05541132,191.34,191.33,36.73]
[1755465837088,7.37541132,191.34,191.33,36.73]
[1755465837268,7.37541132,191.34,191.33,41.95657189]
[1755465837874,7.37541132,191.34,191.33,45.95777667]
[1755465838921,12.0566161,191.34,191.33,36.71]
[1755465839670,12.0566161,191.34,191.33,0.03]
[1755465841299,7.37541132,191.34,191.33,40.71120478]
[1755465841506,0.68,191.38,191.33,40.71120478]
[1755465841684,0.06,191.39,191.33,40.71120478]
[1755465841685,8.06382398,191.37,191.35,4.00120478]
[1755465841882,7.38382398,191.36,191.35,40.70120478]
[1755465842705,3.49760088,191.36,191.35,40.70120478]
[1755465843414,3.49854674,191.36,191.35,45.92723038]
[1755465843787,0.06,191.39,191.35,45.92723038]
[1755465843985,7.38612284,191.38,191.36,4.00120478]
[1755465844185,0.06,191.39,191.37,36.7]
[1755465844514,7.38650146,191.38,191.37,36.7]
[1755465845312,7.38650146,191.38,191.37,61.55544772]
[1755465845502,0.06,191.39,191.38,19.10742035]
[1755465847512,0.06,191.39,191.38,24.33262674]
[1755465848412,1e-08,191.39,191.38,24.33262674]
[1755465848614,0.06,191.43,191.41,26.0]
[1755465848786,0.06,191.43,191.42,36.74]
[1755465849112,0.06,191.43,191.42,40.74120478]
[1755465849279,0.06,191.43,191.42,45.96531929]
[1755465852615,0.06,191.43,191.42,61.07153486]
[1755465861943,0.06,191.43,191.42,61.59394631]
[1755465862615,0.06,191.43,191.42,24.85394631]
[1755465862818,0.74,191.43,191.42,45.88531929]
[1755465869030,0.74,191.43,191.42,9.22531929]
[1755465869235,0.74,191.43,191.42,45.86531929]
[1755465877271,0.06,191.43,191.42,45.86531929]
[1755465877474,0.06,191.43,191.42,61.49394631]
[1755465891298,0.73,191.43,191.42,40.01153486]
[1755465891603,0.73,191.43,191.42,9.22531929]
[1755465891772,0.73,191.43,191.42,41.86411451]
[1755465893689,0.73,191.43,191.42,45.86531929]
[1755465899493,0.06,191.43,191.42,60.97153486]
[1755465899698,0.06,191.43,191.42,63.58605131]
[1755465900099,0.73,191.43,191.42,63.58605131]
[1755465900303,0.06,191.43,191.42,63.58605131]
[1755465900992,0.73,191.43,191.42,63.58605131]
[1755465901390,0.73,191.43,191.42,63.06363986]
[1755465901890,0.73,191.43,191.42,9.22531929]
[1755465902090,0.73,191.43,191.42,5.22411451]
[1755465902299,0.73,191.43,191.42,41.86411451]
[1755465902814,0.73,191.43,191.4,6.09363878]
[1755465902988,0.73,191.43,191.4,26.0]
[1755465903186,0.73,191.43,191.41,36.64]
[1755465904112,3.50097477,191.42,191.41,36.64]
[1755465904606,4.17097477,191.42,191.41,36.64]
[1755465905514,4.17097477,191.42,191.41,41.86438744]
[1755465905815,0.67,191.42,191.41,41.86438744]
[1755465906617,4.16974135,191.42,191.41,41.86438744]
[1755465906915,4.16974135,191.42,191.41,36.64]
[1755465908288,8.17094613,191.42,191.41,36.64]
[1755465908587,13.39508358,191.42,191.4,36.64]
[1755465908911,8.17094613,191.41,191.39,36.67]
[1755465909086,7.50094613,191.4,191.39,36.67]
[1755465909285,8.17094613,191.4,191.39,36.67]
[1755465909479,4.67120478,191.4,191.39,36.67]
[1755465910314,0.67,191.4,191.39,36.67]
[1755465918818,0.78,191.43,191.39,40.67120478]
[1755465919005,0.06,191.43,191.4,4.00120478]
[1755465919210,0.72,191.42,191.41,36.64]
[1755465919413,0.06,191.43,191.41,40.64120478]
[1755465919597,0.06,191.43,191.42,4.00120478]
[1755465920623,0.06,191.43,191.42,9.22531929]
[1755465923903,0.06,191.43,191.42,5.22411451]
[1755465924132,0.06,191.43,191.42,9.22531929]
[1755465924994,0.78,191.43,191.42,9.22531929]
[1755465930216,0.06,191.43,191.42,9.22531929]
[1755465932453,0.78,191.43,191.42,9.22531929]
[1755465934538,0.06,191.43,191.42,9.22531929]
[1755465937140,0.78,191.43,191.42,9.22531929]
[1755465943873,0.78,191.43,191.42,5.22411451]
[1755465944181,4.27800229,191.43,191.42,9.22531929]
[1755465952365,4.27800229,191.43,191.42,7.57821394]
[1755465952865,3.55800229,191.43,191.42,7.57821394]
[1755465959495,0.06,191.43,191.42,7.57821394]
[1755465959697,3.56088908,191.43,191.42,7.57821394]
[1755465960866,4.27088908,191.43,191.42,7.57821394]
[1755465965975,3.56088908,191.43,191.42,7.57821394]
[1755465966175,4.27088908,191.43,191.42,7.57821394]
[1755465968997,3.56088908,191.43,191.42,7.57821394]
[1755465970003,4.27088908,191.43,191.42,7.57821394]
[1755465977915,4.27088908,191.43,191.41,36.64]
[1755465978115,4.21088908,191.42,191.41,38.99409943]
[1755465978405,4.21088908,191.42,191.41,36.64]
[1755465978916,4.21088908,191.42,191.41,38.99409943]
[1755465985220,6.56498851,191.42,191.39,0.03]
[1755465985425,3.50088908,191.41,191.4,36.58]
[1755465985619,4.21088908,191.41,191.39,36.61]
[1755465985916,4.21088908,191.4,191.39,36.61]
[1755465987116,4.21088908,191.4,191.39,0.03]
[1755465993932,9.43554947,191.4,191.39,0.03]
[1755465994533,4.21088908,191.4,191.39,0.03]
[1755465996217,9.43554947,191.4,191.39,0.03]
[1755465996413,11.7896489,191.4,191.39,0.03]
[1755465996643,4.21088908,191.4,191.39,0.03]
[1755465997216,4.21088908,191.4,191.39,2.38409943]
[1755465997415,0.06,191.43,191.39,48.38049715]
[1755465997722,3.49595747,191.42,191.39,52.304891]
[1755465998026,0.06,191.43,191.39,52.304891]
[1755465998231,0.06,191.43,191.4,5.22466039]
[1755465998827,0.06,191.43,191.42,2.35409943]
[1755465999013,3.55663981,191.43,191.42,2.35409943]
[1755465999416,3.55663981,191.43,191.42,44.15821394]
[1755465999626,0.06,191.43,191.42,44.15821394]
[1755466000016,0.06,191.43,191.42,53.60994194]
[1755466000415,0.06,191.43,191.42,49.7084326]
[1755466000620,4.26611984,191.43,191.42,46.031728]
[1755466001142,4.26611984,191.43,191.42,36.58]
[1755466001447,4.26611984,191.43,191.41,3.6767046]
[1755466001745,4.20611984,191.42,191.41,3.6767046]
[1755466002321,4.20611984,191.42,191.4,40.2567046]
[1755466002530,0.71,191.41,191.4,40.2567046]
[1755466002742,0.77,191.43,191.4,40.2567046]
[1755466003032,3.49611605,191.42,191.41,3.6767046]
[1755466003349,4.20611605,191.42,191.41,3.6767046]
[1755466004522,4.20611605,191.42,191.39,0.03]
[1755466004856,4.20611605,191.41,191.39,0.03]
[1755466005059,3.49611605,191.4,191.39,0.03]
[1755466005222,4.20611605,191.4,191.39,0.03]
[1755466007542,7.88282065,191.4,191.39,0.03]
[1755466008934,13.10748104,191.4,191.39,0.03]
[1755466010337,9.43077644,191.4,191.39,0.03]
[1755466011262,4.20611605,191.4,191.39,0.03]
[1755466011667,13.10748104,191.4,191.39,0.03]
[1755466012046,9.43077644,191.4,191.39,0.03]
[1755466012555,4.20611605,191.4,191.39,0.03]
[1755466018876,3.49611605,191.4,191.39,3.7067046]
[1755466019869,4.20611605,191.4,191.39,3.7067046]
[1755466020377,4.20611605,191.4,191.39,0.03]
[1755466020582,3.49611605,191.4,191.39,3.7067046]
[1755466024172,4.20611605,191.4,191.39,3.7067046]
[1755466025058,4.20611605,191.4,191.39,0.03]
[1755466025492,13.10748104,191.4,191.39,0.03]
[1755466025663,16.98281632,191.4,191.39,0.03]
[1755466027660,13.10748104,191.4,191.39,0.03]
[1755466032592,53.54263199,191.4,191.39,0.03]
[1755466034271,57.91874335,191.4,191.39,0.03]
[1755466035983,17.68203875,191.4,191.39,0.03]
[1755466036186,13.30592739,191.4,191.39,0.03]
[1755466036867,7.371267,191.4,191.39,0.03]
[1755466037182,3.4876235,191.4,191.39,3.7067046]
[1755466037795,3.4876235,191.4,191.39,0.03]
[1755466037974,4.1876235,191.4,191.39,0.03]
[1755466039099,3.4876235,191.4,191.39,3.7067046]
[1755466040398,3.5476235,191.4,191.39,3.7067046]
[1755466044798,4.2476235,191.4,191.39,3.7067046]
[1755466045304,4.2476235,191.4,191.39,0.03]
[1755466048311,8.13042001,191.4,191.39,0.03]
[1755466048534,3.5476235,191.4,191.39,3.7067046]
[1755466049733,3.5476235,191.4,191.39,8.93163798]
[1755466055441,0.06,191.4,191.39,8.93163798]
[1755466058239,0.06,191.4,191.39,5.25493338]
[1755466058426,0.06,191.4,191.39,8.93163798]
[1755466060127,0.76,191.4,191.39,8.93163798]
[1755466061260,4.25279188,191.4,191.39,3.7067046]
[1755466062059,7.92949648,191.4,191.39,0.03]
[1755466062357,4.25279188,191.4,191.39,0.03]
[1755466069070,17.03254574,191.4,191.39,0.03]
[1755466069253,21.39207512,191.4,191.39,0.03]
[1755466069448,17.03254574,191.4,191.39,0.03]
[1755466069651,4.25279188,191.4,191.39,0.03]
[1755466071481,8.13169519,191.4,191.39,0.03]
[1755466073777,3.55279188,191.4,191.39,3.7067046]
[1755466074163,4.25279188,191.4,191.39,3.7067046]
[1755466077077,4.25279188,191.4,191.39,0.03]
[1755466078052,3.55279188,191.4,191.39,3.7067046]
[1755466088111,4.25279188,191.4,191.39,0.03]
[1755466088416,4.25279188,191.4,191.39,3.7067046]
[1755466095006,3.55279188,191.4,191.39,3.7067046]
[1755466095310,4.26279188,191.4,191.39,3.7067046]
[1755466102328,4.26279188,191.4,191.39,2.38491992]
[1755466103123,3.55279188,191.4,191.39,2.38491992]
[1755466103629,4.26279188,191.4,191.39,2.38491992]
[1755466106816,3.55279188,191.4,191.39,2.38491992]
[1755466111932,4.26279188,191.4,191.39,2.38491992]
[1755466112711,3.55279188,191.4,191.39,2.38491992]
[1755466113541,4.26279188,191.4,191.39,2.38491992]
[1755466126447,4.26279188,191.4,191.39,2.38491992]
[1755466128158,4.26279188,191.4,191.39,0.03]
[1755466128466,4.26279188,191.4,191.39,2.38491992]
[1755466144785,3.55279188,191.4,191.39,2.38491992]
[1755466145574,4.22279188,191.4,191.39,2.38491992]
[1755466146972,3.55279188,191.4,191.39,7.6098533]
[1755466147166,8.02473496,191.42,191.4,15.10621557]
[1755466147362,8.02473496,191.42,191.41,53.96113549]
[1755466147861,8.02473496,191.42,191.41,61.98587049]
[1755466148891,8.02473496,191.42,191.41,67.21025793]
[1755466165680,8.02473496,191.42,191.41,59.18552293]
[1755466165880,8.02473496,191.42,191.41,67.21025793]
[1755466166101,0.06,191.43,191.42,15.10621557]
[1755466166293,0.06,191.43,191.42,17.46113549]
[1755466166789,0.06,191.43,191.42,19.55324049]
[1755466170206,0.06,191.43,191.42,24.777355]
[1755466171512,0.06,191.44,191.42,25.29976645]
[1755466171807,0.06,191.46,191.45,26.0]
[1755466172002,0.06,191.46,191.45,64.81491992]
[1755466172812,0.06,191.46,191.45,72.12988281]
[1755466174895,0.78,191.46,191.45,72.12988281]
[1755466175898,0.78,191.46,191.45,76.37587351]
[1755466179619,0.06,191.46,191.45,76.37587351]
[1755466180418,0.78,191.46,191.45,76.37587351]
[1755466186426,0.06,191.46,191.45,76.37587351]
[1755466187291,1e-08,191.47,191.46,15.10621557]
[1755466187487,0.72,191.48,191.46,17.98343779]
[1755466187691,0.72,191.48,191.47,38.79491992]
[1755466188105,0.72,191.48,191.47,69.58700049]
[1755466188322,0.72,191.48,191.47,53.90113549]
[1755466188523,0.72,191.48,191.47,55.99280249]
[1755466189518,0.72,191.48,191.47,61.21555279]
[1755466190018,0.72,191.48,191.47,36.44]
[1755466191811,0.72,191.48,191.47,38.79491992]
[1755466195831,0.72,191.48,191.47,36.44]
[1755466200006,4.21192164,191.48,191.47,36.44]
[1755466203042,4.21192164,191.48,191.45,2.35491992]
[1755466203210,3.49192164,191.47,191.46,36.44]
[1755466203412,4.15192164,191.47,191.46,36.44]
[1755466203714,4.15192164,191.47,191.45,0.03]
[1755466203715,10.38686405,191.47,191.45,0.03]
[1755466203933,10.38683962,191.46,191.45,0.03]
[1755466204218,10.38624913,191.46,191.45,0.03]
[1755466204936,15.60927221,191.46,191.45,0.03]
[1755466205229,11.72986464,191.46,191.45,0.03]
[1755466205438,15.60866787,191.46,191.45,0.03]
[1755466205936,10.38564479,191.46,191.45,0.03]
[1755466206118,6.50684156,191.46,191.45,0.03]
[1755466206311,3.01491992,191.46,191.45,0.03]
[1755466206536,6.50524046,191.46,191.45,0.03]
[1755466210234,11.72826354,191.46,191.45,0.03]
[1755466210543,15.60454474,191.46,191.45,0.03]
[1755466215729,52.04454474,191.46,191.45,0.03]
[1755466215941,26.0,191.44,191.43,0.03]
[1755466216119,35.72152166,191.44,191.43,0.03]
[1755466216327,36.38152166,191.44,191.43,0.03]
[1755466217463,41.6050904,191.44,191.43,0.03]
[1755466217749,63.15874448,191.44,191.43,0.03]
[1755466217955,63.15874448,191.44,191.43,1e-08]
[1755466218561,143.99999999,191.42,191.41,0.03]
[1755466218872,190.16152165,191.42,191.41,0.03]
[1755466219237,190.82152165,191.42,191.41,0.03]
[1755466219458,192.16935496,191.42,191.41,0.03]
[1755466219644,196.03219837,191.42,191.41,0.03]
[1755466220043,196.03219833,191.42,191.41,0.03]
[1755466221662,15.10621557,191.41,191.4,0.03]
[1755466221863,25.4742994,191.41,191.4,0.03]
[1755466222067,24.8142994,191.41,191.4,0.03]
[1755466222246,25.4742994,191.41,191.4,0.03]
[1755466222862,30.69868684,191.41,191.4,0.03]
[1755466223068,32.79243384,191.41,191.4,0.03]
[1755466224246,32.79243384,191.41,191.39,0.03]
[1755466224247,42.21211352,191.41,191.39,0.03]
[1755466224449,203.82503391,191.4,191.39,0.03]
[1755466224667,71.32503391,191.4,191.39,0.03]
[1755466225267,76.5496943,191.4,191.39,0.03]
[1755466225662,76.54770363,191.4,191.39,0.03]
[1755466226372,78.64156163,191.4,191.39,0.03]
[1755466226777,78.64156163,191.4,191.39,1e-08]
[1755466228082,41.10621557,191.38,191.36,1e-08]
[1755466228247,26.0,191.35,191.33,0.03]
[1755466228450,73.51126606,191.35,191.33,0.03]
[1755466228775,76.26556106,191.35,191.33,0.03]
[1755466228957,2.35491992,191.34,191.29,0.03]
[1755466229273,2.35491992,191.32,191.29,0.03]
[1755466229500,5.81389274,191.32,191.29,0.03]
[1755466229982,6.47389274,191.32,191.29,0.03]
[1755466230352,8.24176499,191.32,191.29,0.03]
[1755466231464,11.69776922,191.32,191.29,0.03]
[1755466231977,37.69776922,191.32,191.29,0.03]
[1755466232192,11.69776922,191.32,191.29,0.03]
[1755466232351,31.22739153,191.3,191.29,0.03]
[1755466232556,70.02231145,191.3,191.29,0.03]
[1755466232780,70.68231145,191.3,191.29,0.03]
[1755466234375,90.57263569,191.3,191.29,0.03]
[1755466234578,94.40917832,191.3,191.29,0.03]
[1755466237982,94.40536912,191.3,191.29,0.03]
[1755466238761,94.40452298,191.3,191.29,0.03]
[1755466238962,96.49947698,191.3,191.29,0.03]
[1755466241068,42.19830741,191.3,191.29,0.03]
[1755466241291,74.97185276,191.3,191.29,0.03]
[1755466241662,38.51185276,191.3,191.29,0.03]
[1755466244505,33.28446123,191.3,191.29,0.03]
[1755466247184,37.12795484,191.3,191.29,0.03]
[1755466247764,37.12816745,191.3,191.29,0.03]
[1755466249789,3.83709781,191.3,191.29,3.71645465]
[1755466250375,3.83709781,191.3,191.29,0.03]
[1755466253489,7.29881117,191.3,191.29,0.03]
[1755466255100,13.2162027,191.3,191.29,0.03]
[1755466255307,17.06669865,191.3,191.29,0.03]
[1755466255486,57.1931533,191.3,191.29,0.03]
[1755466256304,53.34265735,191.3,191.29,0.03]
[1755466256507,57.19375357,191.3,191.29,0.03]
[1755466257008,57.19353058,191.3,191.29,0.03]
[1755466257205,59.28837458,191.3,191.29,0.03]
[1755466257999,57.19353058,191.3,191.29,0.03]
[1755466258501,61.54755109,191.3,191.29,0.03]
[1755466260427,11.1496844,191.3,191.29,3.71645465]
[1755466261105,11.1496844,191.3,191.29,0.03]
[1755466261430,11.16144629,191.3,191.29,0.03]
[1755466263117,7.31057306,191.3,191.29,0.03]
[1755466263299,7.31057306,191.3,191.29,3.71645465]
[1755466264117,7.31057306,191.3,191.29,0.03]
[1755466264833,57.21980587,191.3,191.29,0.03]
[1755466265011,61.56164993,191.3,191.29,0.03]
[1755466265318,65.24810393,191.3,191.29,0.03]
[1755466266832,60.90625987,191.3,191.29,0.03]
[1755466267196,26.0,191.28,191.27,0.03]
[1755466267429,73.46531653,191.28,191.27,0.03]
[1755466267719,70.2899299,191.28,191.27,0.03]
[1755466267924,74.15982421,191.28,191.27,0.03]
[1755466268614,79.38776231,191.28,191.27,0.03]
[1755466270405,83.74198548,191.28,191.27,0.03]
[1755466274019,83.74886856,191.28,191.27,0.03]
[1755466274636,83.74876824,191.28,191.27,0.03]
[1755466278233,79.39454507,191.28,191.27,0.03]
[1755466281133,83.74876824,191.28,191.27,0.03]
[1755466281931,94.50076064,191.28,191.27,1e-08]
[1755466282144,15.10621557,191.27,191.25,0.2]
[1755466282433,51.85716233,191.26,191.25,0.2]
[1755466282633,52.50716233,191.26,191.25,0.2]
[1755466282838,57.73564711,191.26,191.25,0.2]
[1755466283040,53.85897004,191.26,191.25,0.2]
[1755466283233,61.61199528,191.26,191.25,0.2]
[1755466283434,65.29844928,191.26,191.25,0.2]
[1755466286267,60.93789392,191.26,191.25,0.2]
[1755466287635,76.04410949,191.26,191.25,0.2]
[1755466288971,76.04410949,191.26,191.21,0.03]
[1755466288972,26.0,191.24,191.21,0.03]
[1755466289146,73.4964393,191.24,191.21,0.03]
[1755466289334,74.1464393,191.24,191.21,0.03]
[1755466290085,79.37547088,191.24,191.21,0.03]
[1755466290569,83.06192588,191.24,191.21,0.03]
[1755466292167,79.18541648,191.24,191.21,0.03]
[1755466292356,83.06081917,191.24,191.21,0.03]
[1755466292941,83.06074786,191.24,191.21,0.03]
[1755466293145,83.06063746,191.24,191.21,0.03]
[1755466301275,79.18541648,191.24,191.21,0.03]
[1755466301475,83.06314527,191.24,191.21,0.03]
[1755466301993,79.18541648,191.24,191.21,0.03]
[1755466302187,83.06397545,191.24,191.21,0.03]
[1755466304488,79.18541648,191.24,191.21,0.03]
[1755466304689,83.06520527,191.24,191.21,0.03]
[1755466306292,81.73932077,191.24,191.21,0.03]
[1755466307372,86.09987613,191.24,191.21,0.03]
[1755466307978,15.10621557,191.23,191.21,0.03]
[1755466308188,178.67383419,191.22,191.21,0.03]
[1755466308362,179.36383419,191.22,191.21,0.03]
[1755466308569,181.72440419,191.22,191.21,0.03]
[1755466309262,191.32191965,191.22,191.21,0.03]
[1755466310604,187.44213086,191.22,191.21,0.03]
[1755466310777,191.32907143,191.22,191.21,0.03]
[1755466311296,191.32930787,191.22,191.21,0.03]
[1755466314968,186.9613709,191.22,191.21,0.03]
[1755466315600,147.4508009,191.22,191.21,0.03]
[1755466315804,183.8908009,191.22,191.21,0.03]
[1755466316232,145.09023075,191.22,191.21,0.03]
[1755466316416,181.53023075,191.22,191.21,0.03]
[1755466316922,139.86065226,191.22,191.21,0.03]
[1755466317142,135.97347525,191.22,191.21,0.03]
[1755466317994,3.47347525,191.22,191.21,2.39057015]
[1755466318524,0.06,191.23,191.21,2.39057015]
[1755466318723,0.06,191.23,191.22,2.36057015]
[1755466318931,3.56119056,191.23,191.22,2.36057015]
[1755466319648,0.06,191.23,191.22,2.36057015]
[1755466320330,0.06,191.23,191.22,3.68530051]
[1755466321635,3.56115565,191.23,191.22,3.68530051]
[1755466323415,3.56115565,191.23,191.22,8.914879]
[1755466323619,0.06,191.23,191.22,8.914879]
[1755466324339,3.87651584,191.26,191.23,15.10621557]
[1755466324524,3.87651584,191.26,191.25,3.68530051]
[1755466325034,3.87651584,191.26,191.25,24.02027424]
[1755466325542,0.06,191.27,191.26,18.79151608]
[1755466325727,0.06,191.29,191.26,48.99966506]
[1755466325918,3.83709781,191.3,191.28,22.47681659]
[1755466326119,0.06,191.31,191.3,18.79151608]
[1755466327031,0.06,191.31,191.3,24.01890761]
[1755466330342,0.06,191.34,191.33,41.10621557]
[1755466330549,0.06,191.35,191.33,81.21151608]
[1755466330728,0.06,191.36,191.35,15.10621557]
[1755466330920,0.06,191.36,191.35,18.79151608]
[1755466331121,0.06,191.36,191.35,24.01754168]
[1755466331741,0.06,191.37,191.35,50.01754168]
[1755466331945,143.99999999,191.42,191.38,15.10621557]
[1755466332146,143.99999999,191.42,191.41,18.79151608]
[1755466332748,144.68999999,191.42,191.39,3.68530051]
[1755466332940,144.68999999,191.42,191.37,36.46]
[1755466332941,4.37530051,191.41,191.37,36.46]
[1755466333139,0.69,191.4,191.37,40.14530051]